fUST/lending_fUST_20250106
["ID","MTS","AMOUNT","RATE_DAILY","PERIOD"]
[347772130,1736098053262,-500.0,0.00021057,3]
[347772131,1736098053287,-582.29,0.00021057,3]
[347772132,1736098053310,-500.0,0.00021057,3]
[347772133,1736098053332,-594.92,0.00021057,3]
[347772134,1736098053356,-500.0,0.00021058,3]
[347772135,1736098053382,-500.0,0.00021058,3]
[347772136,1736098053406,-500.0,0.00021058,3]
[347772137,1736098053431,-500.0,0.00021058,3]
[347772138,1736098053455,-500.0,0.00021058,3]
[347772139,1736098053480,-526.04327992,0.00021058,3]
[347772140,1736098053505,-500.0,0.00021058,3]
[347772141,1736098053534,-501.19472025,0.00021058,3]
[347772142,1736098053567,-500.0,0.00021058,3]
[347772143,1736098053591,-503.07703342,0.00021058,3]
[347772144,1736098053615,-198.5890037,0.00021058,3]
[347772152,1736098120409,285.209168,0.0002,120]
[347772155,1736098145166,-1235.20157053,0.0002,2]
[347772156,1736098145190,-500.0,0.00020321,3]
[347772157,1736098145215,-500.0,0.00020321,3]
[347772158,1736098145238,-555.67,0.00020321,3]
[347772159,1736098145263,-500.0,0.00020321,3]
[347772160,1736098145295,-300.0,0.00020594,2]
[347772161,1736098145328,-412.72935751,0.00020595,3]
[347772162,1736098164119,-150.0,0.00018938,2]
[347772163,1736098164146,-500.0,0.00020321,3]
[347772164,1736098180902,219.17535966,0.00020321,3]
[347772182,1736098232811,-280.82464034,0.00020321,3]
[347772184,1736098232821,-235.78,0.00020321,3]
[347772185,1736098232830,-301.27,0.00020321,3]
[347772187,1736098232840,-500.0,0.00020321,3]
[347772189,1736098232849,-500.0,0.00020321,3]
[347772191,1736098232861,-300.0,0.00020594,2]
[347772193,1736098232870,-87.27064249,0.00020595,3]
[347772195,1736098232881,-500.0,0.00020595,3]
[347772197,1736098232890,-500.0,0.00020595,3]
[347772199,1736098232901,-391.29467053,0.00020595,3]
[347772201,1736098232911,-286.41941813,0.00020595,3]
[347772204,1736098232923,-500.0,0.00020595,3]
[347772206,1736098232934,-500.0,0.00020869,3]
[347772208,1736098232944,-412.23,0.00020869,3]
[347772210,1736098232954,-500.0,0.00020869,3]
[347772212,1736098232963,-500.0,0.00020869,3]
[347772214,1736098232973,-182.98673399,0.00020959,2]
[347772215,1736098232982,-527.68,0.00021037,3]
[347772216,1736098232991,-499.0,0.00021037,2]
[347772218,1736098233000,-4686.0,0.00021037,3]
[347772220,1736098233010,-500.0,0.00021037,3]
[347772221,1736098233020,-500.0,0.00021037,3]
[347772223,1736098233029,-500.0,0.00021037,3]
[347772226,1736098233039,-500.0,0.00021037,3]
[347772230,1736098233050,-500.0,0.00021037,3]
[347772233,1736098233059,-500.0,0.00021037,3]
[347772235,1736098233070,-500.0,0.00021037,3]
[347772239,1736098233080,-500.0,0.00021037,3]
[347772241,1736098233089,-500.0,0.00021037,3]
[347772244,1736098233099,-534.12,0.00021037,3]
[347772247,1736098233109,-500.0,0.00021037,3]
[347772250,1736098233119,-500.0,0.00021037,3]
[347772254,1736098233129,-500.0,0.00021037,3]
[347772257,1736098233139,-500.0,0.00021037,3]
[347772260,1736098233148,-500.0,0.00021037,3]
[347772263,1736098233157,-405.74388794,0.00021037,3]
[347772266,1736098233167,-500.0,0.00021037,3]
[347772268,1736098233176,-500.0,0.00021037,3]
[347772270,1736098233186,-532.2730238,0.00021038,3]
[347772272,1736098233196,-503.47725766,0.00021038,3]
[347772274,1736098233206,-500.0,0.00021038,3]
[347772276,1736098233215,-500.0,0.00021038,3]
[347772278,1736098233225,-500.0,0.00021038,3]
[347772280,1736098233236,-500.0,0.00021038,3]
[347772282,1736098233245,-500.0,0.00021038,3]
[347772284,1736098233254,-504.62763379,0.00021038,3]
[347772286,1736098233264,-500.0,0.00021038,3]
[347772288,1736098233273,-500.0,0.00021049,3]
[347772290,1736098233282,-500.0,0.00021049,3]
[347772292,1736098233292,-500.0,0.00021049,3]
[347772294,1736098233303,-300.91,0.00021057,3]
[347772296,1736098233312,-500.23,0.00021057,3]
[347772298,1736098233323,-500.0,0.00021057,3]
[347772300,1736098233332,-500.0,0.00021058,3]
[347772302,1736098233342,-500.0,0.00021058,3]
[347772304,1736098233352,-216.60363219,0.00021058,3]
[347772307,1736098233367,-283.39636781,0.00021058,3]
[347772309,1736098233377,-500.7511855,0.00021058,3]
[347772311,1736098233387,-500.0,0.00021058,3]
[347772313,1736098233397,-500.0,0.00021058,3]
[347772315,1736098233407,-500.0,0.00021058,3]
[347772317,1736098233416,-500.0,0.00021058,3]
[347772319,1736098233426,-500.0,0.00021058,3]
[347772321,1736098233435,-500.0,0.00021058,3]
[347772323,1736098233446,-500.0,0.00021058,3]
[347772325,1736098233456,-500.0,0.00021058,3]
[347772327,1736098233473,-500.0,0.00021058,3]
[347772329,1736098233483,-500.0,0.00021058,3]
[347772331,1736098233493,-500.0,0.00021058,3]
[347772333,1736098233507,-500.0,0.00021058,3]
[347772335,1736098233520,-500.0,0.00021058,3]
[347772337,1736098233529,-500.0,0.00021058,3]
[347772339,1736098233540,-500.0,0.00021058,3]
[347772341,1736098233550,-500.0,0.00021058,3]
[347772343,1736098233560,-559.163399,0.00021059,3]
[347772345,1736098233570,-500.0,0.00021059,3]
[347772347,1736098233580,-500.0,0.00021059,3]
[347772349,1736098233591,-500.0,0.00021059,3]
[347772351,1736098233601,-500.0,0.00021059,3]
[347772353,1736098233611,-500.0,0.00021059,3]
[347772355,1736098233621,-500.0,0.00021059,3]
[347772357,1736098233631,-500.0,0.00021059,3]
[347772359,1736098233641,-500.0,0.00021059,3]
[347772361,1736098233651,-500.0,0.00021059,3]
[347772363,1736098233661,-501.01990047,0.00021059,3]
[347772365,1736098233671,-504.10355821,0.00021059,3]
[347772367,1736098233681,-500.0,0.00021059,3]
[347772369,1736098233691,-500.0,0.00021059,3]
[347772371,1736098233701,-500.0,0.00021059,3]
[347772373,1736098233712,-503.49821531,0.00021059,3]
[347772376,1736098233721,-500.0,0.00021059,3]
[347772378,1736098233730,-500.47102507,0.00021059,3]
[347772380,1736098233742,-500.0,0.00021059,3]
[347772381,1736098233753,-500.0,0.00021059,3]
[347772383,1736098233763,-500.0,0.00021059,3]
[347772385,1736098233772,-500.0,0.00021059,3]
[347772387,1736098233782,-501.78866846,0.00021059,3]
[347772389,1736098233792,-500.0,0.00021059,3]
[347772391,1736098233801,-500.61405082,0.00021059,3]
[347772393,1736098233811,-500.0,0.00021059,3]
[347772395,1736098233822,-504.24198776,0.00021059,3]
[347772397,1736098233833,-150.26331925,0.00021059,3]
[347772400,1736098233843,-500.0,0.00021059,3]
[347772402,1736098233853,-500.0,0.00021059,3]
[347772403,1736098233867,-500.0,0.00021059,3]
[347772406,1736098233877,-500.0,0.00021059,3]
[347772408,1736098233887,-500.0,0.00021059,3]
[347772410,1736098233897,-500.0,0.00021073,2]
[347772412,1736098233906,-152.10020142,0.00021079,2]
[347772413,1736098233916,-358.89011847,0.000211,2]
[347772416,1736098233934,-117.81988153,0.000211,2]
[347772418,1736098233943,-602.68337793,0.00021143,3]
[347772421,1736098233955,-74.38662207,0.00021143,3]
[347772423,1736098233965,-692.68,0.00021143,3]
[347772425,1736098233974,-500.0,0.00021143,3]
[347772427,1736098233985,-500.0,0.00021143,3]
[347772428,1736098233994,-500.0,0.00021143,3]
[347772431,1736098234005,-152.10020142,0.00021186,2]
[347772432,1736098234015,-182.98673393,0.00021227,2]
[347772435,1736098234024,-152.10020142,0.00021293,2]
[347772437,1736098234034,-500.0,0.00021311,3]
[347772439,1736098234043,-438.77,0.00021311,3]
[347772441,1736098234053,-289.41985059,0.00021311,3]
[347772442,1736098234063,-500.0,0.00021311,3]
[347772444,1736098234074,-500.0,0.00021311,3]
[347772447,1736098234084,-500.0,0.00021311,3]
[347772461,1736098234216,-500.0,0.00021311,3]
[347772463,1736098234226,-500.0,0.00021311,3]
[347772465,1736098234236,-500.0,0.00021311,3]
[347772467,1736098234245,-500.0,0.00021311,3]
[347772469,1736098234255,-500.0,0.00021311,3]
[347772471,1736098234265,-500.0,0.00021311,3]
[347772473,1736098234275,-544.85,0.00021311,3]
[347772475,1736098234284,-500.0,0.00021311,3]
[347772477,1736098234293,-500.0,0.00021311,3]
[347772479,1736098234303,-4686.0,0.00021311,3]
[347772481,1736098234313,-500.0,0.00021311,3]
[347772483,1736098234324,-500.0,0.00021311,3]
[347772485,1736098234334,-500.0,0.00021312,3]
[347772487,1736098234343,-500.0,0.00021312,3]
[347772489,1736098234353,-501.3606596,0.00021312,2]
[347772491,1736098234363,-500.0,0.00021312,3]
[347772493,1736098234373,-500.0,0.00021312,3]
[347772495,1736098234384,-568.07,0.00021323,3]
[347772497,1736098234394,-500.0,0.00021323,3]
[347772499,1736098234404,-204.95,0.00021323,3]
[347772501,1736098234414,-4.27461377,0.00021323,3]
[347773191,1736098241220,-500.0,0.00021037,3]
[347773193,1736098241229,-495.72538623,0.00021323,3]
[347773195,1736098241238,-500.0,0.00021323,3]
[347773197,1736098241247,-500.0,0.00021323,3]
[347773199,1736098241256,-500.0,0.00021323,3]
[347773201,1736098241266,-500.0,0.00021331,3]
[347773203,1736098241276,-531.98800747,0.00021331,3]
[347773205,1736098241286,-592.06,0.00021332,3]
[347773207,1736098241295,-500.0,0.00021332,3]
[347773209,1736098241305,-500.0,0.00021332,3]
[347773211,1736098241314,-500.0,0.00021332,3]
[347773213,1736098241324,-500.0,0.00021332,3]
[347773215,1736098241333,-500.0,0.00021333,3]
[347773217,1736098241343,-407.29173913,0.00021356,3]
[347773219,1736098241352,-830.78,0.00021358,3]
[347773221,1736098241361,-500.0,0.00021358,3]
[347773223,1736098241371,-500.0,0.00021358,3]
[347773225,1736098241380,-500.0,0.00021358,3]
[347773227,1736098241391,-500.0,0.00021358,3]
[347773229,1736098241400,-500.0,0.00021358,2]
[347773231,1736098241410,-921.44,0.00021358,3]
[347773233,1736098241419,-152.10020142,0.000214,2]
[347773235,1736098241429,-677.07,0.00021417,3]
[347773237,1736098241439,-692.68,0.00021417,3]
[347773239,1736098241448,-500.0,0.00021417,3]
[347773241,1736098241458,-166.7,0.00021417,3]
[347773243,1736098241467,-500.0,0.00021417,3]
[347773245,1736098241477,-182.98673393,0.00021494,2]
[347773247,1736098241486,-152.10020142,0.00021507,2]
[347773249,1736098241496,-500.0,0.00021585,3]
[347773251,1736098241505,-500.0,0.00021585,3]
[347773253,1736098241515,-157.71557765,0.00021585,3]
[347773255,1736098241524,-500.0,0.00021585,3]
[347773257,1736098241534,-500.0,0.00021585,3]
[347773259,1736098241543,-480.13,0.00021585,3]
[347773261,1736098241553,-194.26,0.00021585,3]
[347773263,1736098241562,-3132.2795125,0.00021585,3]
[347773265,1736098241575,-1553.7204875,0.00021585,3]
[347773267,1736098241584,-494.1109963,0.00021585,3]
[347773269,1736098241594,-485.55,0.00021585,3]
[347773271,1736098241603,-500.0,0.00021585,3]
[347773273,1736098241613,-568.07,0.00021597,3]
[347773275,1736098241622,-500.0,0.00021597,3]
[347773277,1736098241632,-49.18611196,0.00021597,3]
[347773280,1736098241643,-450.81388804,0.00021597,3]
[347773282,1736098241653,-226.5963071,0.00021606,3]
[347773284,1736098241664,-348.6536929,0.00021606,3]
[347773286,1736098241674,-542.57529857,0.00021607,3]
[347773288,1736098241683,-152.10020142,0.00021614,2]
[347773290,1736098241692,-247.56790114,0.00021632,3]
[347773292,1736098241703,-583.21209886,0.00021632,3]
[347773294,1736098241713,-500.0,0.00021632,3]
[347773296,1736098241722,-500.0,0.00021632,3]
[347773298,1736098241731,-500.0,0.00021632,2]
[347773300,1736098241742,-921.44,0.00021632,3]
[347773302,1736098241751,-677.07,0.00021691,3]
[347773304,1736098241760,-692.68,0.00021691,3]
[347773306,1736098241769,-500.0,0.00021691,3]
[347773308,1736098241779,-500.0,0.00021691,3]
[347773310,1736098241788,-152.10020142,0.00021721,2]
[347773312,1736098241798,-182.98673393,0.00021762,2]
[347773314,1736098241807,-407.553,0.0002178,2]
[347773316,1736098241816,-152.10020142,0.00021829,2]
[347773318,1736098241826,-500.0,0.00021859,3]
[347773320,1736098241835,-500.0,0.00021859,3]
[347773322,1736098241844,-500.0,0.00021859,3]
[347773324,1736098241853,-500.0,0.00021859,3]
[347773326,1736098241864,-4686.0,0.00021859,3]
[347773328,1736098241874,-500.0,0.00021859,3]
[347773330,1736098241884,-568.07,0.00021871,3]
[347773332,1736098241893,-500.0,0.00021871,3]
[347773334,1736098241903,-500.0,0.00021871,3]
[347773336,1736098241912,-830.78,0.00021906,3]
[347773338,1736098241922,-268.61,0.00021906,3]
[347773340,1736098241932,-500.0,0.00021906,2]
[347773342,1736098241942,-921.44,0.00021906,3]
[347773344,1736098241952,-152.10020142,0.00021936,2]
[347773346,1736098241962,-677.07,0.00021965,3]
[347773348,1736098241971,-692.68,0.00021965,3]
[347773350,1736098241983,-500.0,0.00021965,3]
[347773352,1736098241992,-500.0,0.00021965,3]
[347773354,1736098242002,-160.0,0.00022,2]
[347773356,1736098242011,-198.0761619,0.00022,2]
[347773358,1736098242020,-182.98673393,0.0002203,2]
[347773360,1736098242030,-152.10020142,0.00022043,2]
[347773362,1736098242038,-187.587171,0.00022055,2]
[347773364,1736098242047,-500.0,0.00022133,3]
[347773366,1736098242057,-500.0,0.00022133,3]
[347773368,1736098242067,-500.0,0.00022133,3]
[347773370,1736098242077,-3115.02610306,0.00022133,3]
[347773386,1736098242213,-1546.0642608,0.00022133,3]
[347773388,1736098242225,-24.90963614,0.00022133,3]
[347773390,1736098242234,-359.56579467,0.00022133,3]
[347773393,1736098242252,-140.43420533,0.00022133,3]
[347773395,1736098242261,-500.0,0.00022134,3]
[347773397,1736098242270,-568.07,0.00022145,3]
[347773399,1736098242279,-500.0,0.00022145,3]
[347773401,1736098242288,-319.66,0.00022145,3]
[347773403,1736098242298,-152.10020142,0.0002215,2]
[347773405,1736098242307,-830.78,0.0002218,3]
[347773407,1736098242317,-500.0,0.0002218,2]
[347773409,1736098242328,-921.44,0.0002218,3]
[347773411,1736098242337,-692.68,0.00022239,3]
[347773413,1736098242347,-440.82,0.00022239,3]
[347773415,1736098242356,-208.91844568,0.00022239,3]
[347773417,1736098242365,-152.10020142,0.00022257,2]
[347773419,1736098242375,-182.98673393,0.00022298,2]
[347773421,1736098242384,-152.10020142,0.00022364,2]
[347773423,1736098242393,-298.24,0.00022407,3]
[347773425,1736098242403,-323.32128328,0.00022407,3]
[347773427,1736098242413,-500.0,0.00022407,3]
[347773429,1736098242422,-4686.0,0.00022407,3]
[347773431,1736098242431,-500.0,0.00022407,3]
[347773433,1736098242441,-420.0,0.00022411,2]
[347773435,1736098242451,-568.07,0.00022419,3]
[347773437,1736098242460,-500.0,0.00022419,3]
[347773439,1736098242469,-425.6,0.00022453,3]
[347773441,1736098242478,-830.78,0.00022454,3]
[347773443,1736098242487,-500.0,0.00022454,2]
[347773445,1736098242496,-921.44,0.00022454,3]
[347773446,1736098242505,-152.10020142,0.00022471,2]
[347773448,1736098242513,-20000.0,0.000225,2]
[347773450,1736098242523,-692.68,0.00022513,3]
[347773452,1736098242532,-182.98673393,0.00022565,2]
[347773454,1736098242542,-152.10020142,0.00022579,2]
[347773456,1736098242551,-303.9,0.00022681,3]
[347773458,1736098242561,-4686.0,0.00022681,3]
[347773460,1736098242571,-500.0,0.00022681,3]
[347773462,1736098242582,-152.10020142,0.00022686,2]
[347773464,1736098242592,-568.07,0.00022693,3]
[347773466,1736098242601,-500.0,0.00022693,3]
[347773468,1736098242611,-216.9645596,0.00022698,2]
[347773470,1736098242621,-153.38,0.000227,31]
[347773472,1736098242630,-153.38,0.000227,31]
[347773474,1736098242640,-153.38,0.000227,31]
[347773476,1736098242649,-153.38,0.000227,31]
[347773478,1736098242659,-153.38,0.000227,31]
[347773480,1736098242669,-153.38,0.000227,31]
[347773482,1736098242678,-153.38,0.000227,31]
[347773484,1736098242688,-830.78,0.00022728,3]
[347773486,1736098242698,-500.0,0.00022728,2]
[347773488,1736098242707,-921.44,0.00022728,3]
[347773490,1736098242716,-6220.25226367,0.00022733,7]
[347773492,1736098242726,-692.68,0.00022787,3]
[347773494,1736098242736,-152.10020142,0.00022793,2]
[347773496,1736098242745,-182.98673393,0.00022833,2]
[347773498,1736098242755,-2078.33460352,0.00022833,2]
[347773500,1736098242764,-464.0,0.0002287,9]
[347773502,1736098242775,-152.10020142,0.000229,2]
[347773504,1736098242784,-151.0,0.00022927,2]
[347773506,1736098242793,-1200.0,0.00022928,2]
[347773508,1736098242803,-151.49,0.00022928,2]
[347773510,1736098242813,-500.0,0.00022928,2]
[347773512,1736098242822,-150.09,0.00022928,10]
[347773514,1736098242832,-150.27,0.00022928,10]
[347773516,1736098242842,-150.09,0.00022928,10]
[347773518,1736098242853,-150.09,0.00022928,2]
[347773520,1736098242862,-151.0,0.00022932,7]
[347773522,1736098242876,-151.0,0.00022932,7]
[347773524,1736098242885,-151.0,0.00022932,7]
[347773526,1736098242895,-151.0,0.00022932,7]
[347773528,1736098242904,-151.0,0.00022932,7]
[347773530,1736098242915,-151.0,0.00022932,7]
[347773532,1736098242924,-151.0,0.00022932,7]
[347773534,1736098242933,-151.0,0.00022932,7]
[347773536,1736098242944,-151.0,0.00022932,7]
[347773538,1736098242953,-151.0,0.00022932,7]
[347773540,1736098242963,-151.0,0.00022932,7]
[347773543,1736098242972,-151.0,0.00022932,7]
[347773544,1736098242981,-151.0,0.00022932,7]
[347773547,1736098242990,-151.0,0.00022932,7]
[347773550,1736098242999,-151.0,0.00022932,7]
[347773552,1736098243010,-151.0,0.00022932,7]
[347773554,1736098243019,-220.38433,0.00022932,7]
[347773556,1736098243028,-151.0,0.00022932,7]
[347773558,1736098243038,-151.0,0.00022932,7]
[347773560,1736098243047,-151.0,0.00022932,7]
[347773562,1736098243056,-151.0,0.00022932,7]
[347773564,1736098243065,-151.0,0.00022932,7]
[347773565,1736098243075,-151.0,0.00022932,7]
[347773566,1736098243083,-151.0,0.00022932,7]
[347773567,1736098243092,-151.0,0.00022932,7]
[347773568,1736098243102,-886.30072984,0.00022933,2]
[347773569,1736098243111,-26490.08096673,0.00022933,10]
[347773570,1736098243124,-843.15383058,0.00022933,10]
[347773826,1736098246748,-503.3161859,0.00021037,3]
[347773828,1736098246758,-150.36,0.00022928,10]
[347773830,1736098246767,-14143.28313471,0.00022933,10]
[347773832,1736098246779,-7418.94676918,0.00022933,10]
[347774566,1736098670542,160.993331,0.00013973,2]
[347774571,1736098909063,5000.0,0.00025,120]
[347774572,1736098922179,5000.0,0.00025,120]
[347774575,1736098947313,4806.9,0.00025,120]
[347774576,1736099218166,-189.70036544,0.00018999,2]
[347774577,1736099238260,-761.76147948,0.00018999,2]
[347774578,1736099251145,-635.7458797,0.00018999,2]
[347774579,1736099251173,-353.756915,0.00019592,2]
[347774580,1736099251197,-2786.8940617,0.00019628,2]
[347774581,1736099251220,-300.0,0.00019815,2]
[347774582,1736099251245,-500.0,0.00019816,3]
[347774583,1736099251271,-500.0,0.00019816,3]
[347774584,1736099251296,-500.0,0.00019816,3]
[347774585,1736099251320,-155.18820977,0.00019816,3]
[347774586,1736099251344,-500.0,0.00019816,3]
[347774587,1736099251369,-500.0,0.00019816,3]
[347774588,1736099251392,-500.0,0.00019816,3]
[347774589,1736099251418,-500.0,0.00019816,3]
[347774590,1736099251440,-500.0,0.00019816,3]
[347774591,1736099251462,-500.0,0.00019816,3]
[347774592,1736099251487,-500.0,0.00019816,3]
[347774593,1736099251508,-500.0,0.00019816,3]
[347774594,1736099251529,-257.61269166,0.00019816,3]
[347774595,1736099251550,-500.0,0.00019816,3]
[347774596,1736099251572,-748.62,0.00019816,3]
[347774597,1736099251593,-200.0,0.00019816,3]
[347774598,1736099251614,-500.0,0.00019816,3]
[347774599,1736099251635,-500.0,0.00019816,3]
[347774600,1736099251656,-500.0,0.00019816,3]
[347774601,1736099251678,-610.52,0.00019816,3]
[347774602,1736099251700,-500.0,0.00019816,3]
[347774603,1736099251722,-500.0,0.00019816,3]
[347774604,1736099251744,-500.0,0.00019816,3]
[347774605,1736099251764,-500.0,0.00019816,3]
[347774606,1736099251785,-500.0,0.00019816,3]
[347774607,1736099251805,-500.0,0.00019816,3]
[347774608,1736099251826,-500.0,0.00019816,3]
[347774609,1736099251848,-15518.3370173,0.00019817,2]
[347774610,1736099251868,-319.6898658,0.00019906,2]
[347774611,1736099251889,-531.809247,0.00019979,2]
[347774612,1736099251911,-500.0,0.0002009,3]
[347774613,1736099251934,-574.98,0.0002009,3]
[347774614,1736099251955,-500.0,0.0002009,3]
[347774615,1736099251976,-500.0,0.0002009,3]
[347774616,1736099252000,-748.62,0.0002009,3]
[347774617,1736099252022,-610.52,0.0002009,3]
[347774618,1736099252044,-500.0,0.0002032,3]
[347774619,1736099252067,-500.0,0.0002032,3]
[347774620,1736099252091,-500.0,0.0002032,3]
[347774621,1736099252113,-500.0,0.0002032,3]
[347774622,1736099252136,-500.0,0.0002032,3]
[347774623,1736099252159,-500.0,0.0002032,3]
[347774624,1736099252182,-500.0,0.0002032,3]
[347774625,1736099252204,-500.0,0.0002032,3]
[347774626,1736099252225,-500.0,0.0002032,3]
[347774627,1736099252248,-519.78,0.0002032,3]
[347774628,1736099252270,-502.78,0.0002032,3]
[347774629,1736099252292,-500.0,0.0002032,3]
[347774630,1736099252314,-500.0,0.0002032,3]
[347774631,1736099252335,-500.0,0.0002032,3]
[347774632,1736099252361,-500.0,0.0002032,3]
[347774633,1736099252384,-500.0,0.0002032,3]
[347774634,1736099252408,-500.0,0.0002032,3]
[347774635,1736099252430,-500.0,0.0002032,3]
[347774636,1736099252452,-338.909662,0.0002032,3]
[347774637,1736099252474,-500.0,0.0002032,3]
[347774638,1736099252500,-526.52,0.0002032,3]
[347774639,1736099252523,-500.0,0.0002032,3]
[347774640,1736099252545,-500.0,0.0002032,3]
[347774641,1736099252565,-500.0,0.0002032,3]
[347774642,1736099252587,-500.0,0.0002032,3]
[347774643,1736099252610,-500.0,0.0002032,3]
[347774644,1736099252632,-500.0,0.0002032,3]
[347774645,1736099252654,-500.0,0.0002032,3]
[347774646,1736099252676,-500.0,0.0002032,3]
[347774647,1736099252697,-500.0,0.0002032,3]
[347774648,1736099252719,-500.0,0.0002032,3]
[347774649,1736099252743,-500.0,0.0002032,3]
[347774650,1736099252766,-500.0,0.0002032,3]
[347774651,1736099252788,-500.0,0.00020321,3]
[347774652,1736099252811,-500.0,0.00020321,3]
[347774653,1736099252834,-542.6,0.00020321,3]
[347774654,1736099252857,-500.0,0.00020321,3]
[347774655,1736099252880,-500.0,0.00020321,3]
[347774656,1736099252904,-500.0,0.00020321,3]
[347774657,1736099252927,-505.21018544,0.00020321,3]
[347774658,1736099252951,-500.0,0.00020321,3]
[347774659,1736099252975,-630.33282972,0.00020321,3]
[347774660,1736099253000,-500.0,0.00020321,3]
[347774661,1736099253022,-500.0,0.00020321,3]
[347774662,1736099253046,-500.0,0.00020364,3]
[347774663,1736099253070,-500.0,0.00020364,3]
[347774664,1736099253096,-748.62,0.00020364,3]
[347774665,1736099253121,-610.52,0.00020364,3]
[347774666,1736099253145,-286.28,0.00020594,3]
[347774667,1736099253169,-500.0,0.00020594,3]
[347774668,1736099253193,-542.6,0.00020595,3]
[347774669,1736099253219,-500.0,0.00020595,3]
[347774670,1736099253244,-570.8,0.00020638,3]
[347774671,1736099253268,-496.99536253,0.00020638,3]
[347774672,1736099253292,-748.62,0.00020638,3]
[347774673,1736099253317,-610.52,0.00020638,3]
[347774674,1736099253340,-152.0,0.00020712,2]
[347774675,1736099253372,-160.993331,0.00020807,2]
[347774676,1736099253401,-150.0,0.00020833,2]
[347774677,1736099253429,-542.6,0.00020869,3]
[347774678,1736099253454,-500.0,0.00020869,3]
[347774679,1736099253478,-748.62,0.00020912,3]
[347774680,1736099253507,-610.52,0.00020912,3]
[347774681,1736099253530,-166.449,0.00021036,2]
[347774682,1736099253554,-500.0,0.00021036,3]
[347774683,1736099253578,-500.0,0.00021036,3]
[347774684,1736099253601,-500.0,0.00021036,3]
[347774685,1736099253624,-500.0,0.00021036,3]
[347774686,1736099253647,-500.0,0.00021036,3]
[347774687,1736099253670,-500.0,0.00021036,3]
[347774688,1736099253693,-500.0,0.00021036,3]
[347774689,1736099253716,-500.0,0.00021036,3]
[347774690,1736099253888,-500.0,0.00021036,3]
[347774691,1736099253915,-566.66999167,0.00021036,3]
[347774692,1736099253940,-4366.65,0.00021036,3]
[347774693,1736099253966,-500.0,0.00021036,3]
[347774694,1736099253991,-500.0,0.00021036,3]
[347774695,1736099254015,-518.03,0.00021036,3]
[347774696,1736099254040,-500.0,0.00021036,3]
[347774697,1736099254065,-500.0,0.00021036,3]
[347774698,1736099254091,-500.0,0.00021036,3]
[347774699,1736099254114,-500.0,0.00021036,3]
[347774700,1736099254138,-500.0,0.00021036,3]
[347774701,1736099254161,-500.0,0.00021036,3]
[347774702,1736099254186,-592.34231642,0.00021036,2]
[347774703,1736099254211,-500.0,0.00021036,2]
[347774704,1736099254239,-500.0,0.00021036,2]
[347774705,1736099254265,-500.0,0.00021036,2]
[347774706,1736099254293,-423.11196788,0.00021036,2]
[347774707,1736099254322,-500.0,0.00021036,2]
[347774708,1736099254347,-237.8908135,0.00021036,2]
[347774709,1736099254372,-500.0,0.00021036,3]